bitfinex-derivatives/quotes_ETHF0:USTF0_20250816
["timestamp","ask_amount","ask_price","bid_price","bid_amount"]
[1755325871935,3.791,4431.8,4431.1,0.46395377]
[1755325872240,1.4703,4431.3,4431.2,1.4553]
[1755325873541,1.60372858,4431.3,4431.2,1.4553]
[1755325874035,0.511,4432.0,4431.2,2.64605252]
[1755325874229,1.60367423,4431.9,4431.8,1.2058]
[1755325874636,1.60367423,4431.9,4431.5,0.6228]
[1755325874935,1.4703,4431.8,4431.7,1.4553]
[1755325875138,0.2608,4432.3,4431.8,0.6228]
[1755325875339,0.1694,4432.2,4432.1,0.323]
[1755325875639,0.4302,4432.2,4432.1,1.4553]
[1755325876040,0.6019,4432.2,4432.1,1.4553]
[1755325876241,1.0942,4432.2,4432.1,1.4553]
[1755325876943,1.4703,4432.9,4432.8,1.4553]
[1755325882946,0.3411,4432.9,4432.8,1.4553]
[1755325883246,0.5197,4433.2,4433.1,1.4814]
[1755325883247,1.2288,4433.2,4433.1,1.4814]
[1755325883443,1.3630806,4433.2,4433.1,1.4814]
[1755325883647,1.3630806,4433.2,4433.1,1.2393]
[1755325883648,1.6186806,4433.2,4433.1,1.2393]
[1755325884045,1.2420806,4433.2,4433.1,1.2393]
[1755325884245,1.6186806,4433.2,4433.1,1.4814]
[1755325884447,1.6186806,4433.2,4433.1,1.2393]
[1755325885141,0.1342806,4433.2,4433.1,1.2393]
[1755325885348,0.7355806,4433.2,4433.1,1.4814]
[1755325885543,0.9996806,4433.2,4433.1,1.4814]
[1755325885745,1.6186806,4433.2,4432.4,0.2421]
[1755325885944,0.9647,4432.6,4432.5,1.2393]
[1755325886144,1.4844,4432.6,4432.5,1.4814]
[1755325886748,0.6407,4432.9,4432.5,1.4814]
[1755325887044,0.6904,4433.1,4433.0,0.4866]
[1755325887242,0.6904,4433.1,4433.0,1.4814]
[1755325887243,1.1078,4433.1,4433.0,1.4814]
[1755325887443,1.4844,4433.1,4433.0,1.2393]
[1755325887645,1.61871663,4433.1,4433.0,0.5869]
[1755325888053,1.4844,4433.1,4433.0,1.2393]
[1755325888740,1.4844,4433.1,4433.0,1.4814]
[1755325890948,1.61872232,4433.1,4433.0,1.4814]
[1755325891346,1.4844,4433.1,4433.0,1.4814]
[1755325893142,1.61877072,4433.1,4433.0,0.5869]
[1755325893348,1.61877072,4433.1,4432.6,0.8945]
[1755325893548,1.4844,4433.0,4432.9,0.1743]
[1755325894751,1.4844,4433.0,4432.9,1.4814]
[1755325895350,0.5881,4433.0,4432.9,1.4814]
[1755325895751,1.4844,4433.0,4432.9,1.4814]
[1755325898456,1.4844,4433.0,4432.9,0.5869]
[1755325898954,1.4844,4433.0,4432.9,1.4814]
[1755325901953,1.4844,4433.0,4432.9,1.2393]
[1755325902148,1.4844,4433.0,4432.9,0.5869]
[1755325902559,1.4844,4432.7,4432.6,0.8139]
[1755325902858,1.4844,4432.7,4432.6,21.591]
[1755325903053,1.4844,4432.7,4432.6,21.8483]
[1755325903258,1.4844,4432.7,4432.6,21.8473]
[1755325903457,1.4844,4432.7,4432.6,22.0894]
[1755325904055,1.14282381,4433.2,4432.6,22.0894]
[1755325904263,0.1707,4432.8,4432.7,1.4814]
[1755325905054,0.30540478,4432.8,4432.7,1.4814]
[1755325906362,0.58480478,4432.8,4432.7,1.4814]
[1755325907064,0.81330478,4432.8,4432.7,1.4814]
[1755325907362,1.23070478,4432.8,4432.7,1.4814]
[1755325910364,1.00220478,4432.8,4432.7,1.4814]
[1755325914057,1.22960478,4432.8,4432.7,1.4814]
[1755325914669,1.00220478,4432.8,4432.7,1.4814]
[1755325915367,0.48040478,4432.8,4432.7,1.4814]
[1755325915569,0.30540478,4432.8,4432.7,1.4814]
[1755325916572,0.58320478,4432.8,4432.7,22.0854]
[1755325918767,0.30540478,4432.8,4432.7,22.0854]
[1755325918967,0.13470478,4432.8,4432.7,22.0854]
[1755325919764,0.46420478,4432.8,4432.7,1.4814]
[1755325920067,2.90022859,4432.8,4432.7,20.602]
[1755325920270,2.90022859,4432.8,4432.7,20.8443]
[1755325920472,1.44960478,4432.8,4432.7,20.8443]
[1755325920870,1.68118124,4432.8,4432.7,21.1001]
[1755325921168,3.13180505,4432.8,4432.6,3.2078]
[1755325921367,0.3295,4431.9,4431.8,1.73591313]
[1755325921565,2.14660286,4431.9,4431.7,20.602]
[1755325921873,1.15387905,4431.8,4431.7,20.602]
[1755325922066,1.15387905,4431.8,4431.6,3.2078]
[1755325922261,0.92230259,4431.7,4431.6,23.8098]
[1755325922972,0.13490259,4431.7,4431.6,25.2916]
[1755325923373,0.30380259,4431.7,4431.6,25.2916]
[1755325923672,0.69180259,4431.7,4431.6,25.2916]
[1755325924067,0.92230259,4431.7,4431.6,3.2078]
[1755325924366,0.7874,4431.7,4431.6,3.4501]
[1755325924672,0.7874,4431.7,4431.6,25.2906]
[1755325925274,0.5569,4431.7,4431.6,25.2906]
[1755325926265,0.5569,4431.7,4431.6,4.6896]
[1755325926476,0.5569,4431.7,4431.6,25.2916]
[1755325926671,0.5569,4431.7,4431.6,3.2078]
[1755325926976,0.3295,4431.4,4431.3,0.2423]
[1755325927175,0.7874,4431.4,4431.3,0.2423]
[1755325927370,0.3295,4431.4,4431.3,1.4818]
[1755325927572,0.56,4431.9,4431.8,0.427]
[1755325927772,1.15616054,4431.9,4431.8,0.9251]
[1755325927975,1.15926054,4431.9,4431.8,0.6693]
[1755325928176,1.15926054,4431.9,4431.8,0.2423]
[1755325928677,0.4608,4431.8,4431.6,0.2423]
[1755325928974,0.92666152,4431.7,4431.6,0.2423]
[1755325929373,0.7922,4431.7,4431.6,0.2423]
[1755325930082,0.46580449,4431.7,4431.4,20.8443]
[1755325930276,0.5627,4431.5,4431.4,20.8578]
[1755325930476,0.7922,4431.5,4431.4,21.2848]
[1755325930677,0.7922,4431.5,4431.4,0.6828]
[1755325930980,0.7922,4431.5,4431.4,0.9251]
[1755325931178,0.13438274,4431.5,4431.1,0.10155377]
[1755325931377,0.7922,4431.2,4431.1,0.10035377]
[1755325931580,0.6888,4430.7,4430.6,3.2078]
[1755325931771,0.6888,4430.0,4429.9,0.2423]
[1755325932376,0.6888,4430.0,4429.9,0.6711]
[1755325932580,0.5578,4430.0,4429.9,1.4818]
[1755325933581,0.6888,4430.0,4429.9,1.4818]
[1755325933787,0.6888,4430.0,4429.9,1.0935]
[1755325935887,0.6888,4430.0,4429.9,1.4818]
[1755325936475,2.13942381,4430.0,4429.8,3.2078]
[1755325936673,0.3295,4429.8,4429.7,0.2423]
[1755325937083,0.6888,4429.8,4429.7,0.6711]
[1755325937281,0.6888,4429.8,4429.7,1.3134]
[1755325937678,0.6888,4429.8,4429.7,0.2423]
[1755325937883,0.3972,4429.2,4429.1,3.8032]
[1755325938091,0.5578,4429.2,4429.1,25.0533]
[1755325938579,0.5578,4429.2,4429.1,25.3014]
[1755325939187,0.6889,4429.2,4429.1,4.6954]
[1755325940186,0.5578,4429.2,4429.1,4.6954]
[1755325942182,0.5578,4429.2,4429.1,1.4876]
[1755325943380,1.45062381,4430.0,4429.1,1.4876]
[1755325943586,0.5633,4430.0,4429.9,1.2107]
[1755325943783,0.6944,4430.0,4429.9,1.4588]
[1755325943984,0.6944,4430.0,4429.9,0.2481]
[1755325945785,0.1311,4429.9,4429.6,0.2481]
[1755325945991,0.3348,4429.7,4429.6,1.4588]
[1755325946183,0.2285,4429.9,4429.6,2.90942381]
[1755325946384,0.3948,4429.9,4429.8,0.1767]
[1755325946591,0.5633,4429.9,4429.8,1.4588]
[1755325947284,0.5633,4429.9,4429.8,1.0974]
[1755325947687,0.5633,4429.9,4429.8,1.4588]
[1755325947889,0.6944,4429.9,4429.8,0.2481]
[1755325948181,0.5633,4429.9,4429.8,1.4588]
[1755325949084,0.79698611,4429.9,4429.8,1.4588]
[1755325950385,0.2285,4429.8,4429.2,1.45062381]
[1755325950587,3.2078,4430.1,4429.3,20.7847]
[1755325950588,0.3348,4429.4,4429.3,20.7847]
[1755325950790,0.5633,4429.4,4429.3,1.2967]
[1755325951094,0.6944,4429.4,4429.3,0.2481]
[1755325951792,0.5633,4429.4,4429.3,1.4588]
[1755325953082,3.2078,4429.6,4429.3,0.5914]
[1755325953287,0.3948,4429.9,4429.8,0.5914]
[1755325953488,0.76274806,4429.9,4429.8,1.4588]
[1755325954194,0.93124806,4429.9,4429.8,1.4588]
[1755325955286,0.5633,4429.9,4429.8,1.4588]
[1755325955492,0.93150719,4429.9,4429.8,1.4588]
[1755325956195,0.70300719,4429.9,4429.8,1.4588]
[1755325956691,0.93150719,4429.9,4429.8,1.4588]
[1755325958198,0.93169363,4429.9,4429.8,1.4588]
[1755325961101,1.48873226,4429.9,4429.8,1.4588]
[1755325963704,1.48873226,4429.9,4429.8,0.2481]
[1755325963899,1.61983226,4429.9,4429.8,0.2481]
[1755325964102,1.60676061,4429.9,4429.8,0.506]
[1755325964304,1.60676061,4429.9,4429.8,0.6827]
[1755325964495,1.47566061,4429.9,4429.8,1.4588]
[1755325967016,1.1202222,4429.9,4429.8,1.4588]
[1755325967317,1.4757459,4429.9,4429.8,1.4588]
[1755325968214,1.4757459,4429.9,4429.8,1.0388]
[1755325968407,1.4757459,4429.9,4429.8,1.4588]
[1755325971118,1.47782119,4429.9,4429.8,1.4588]
[1755325972318,0.92089899,4429.9,4429.8,1.4588]
[1755325977220,1.05119899,4429.9,4429.8,0.2481]
[1755325977422,0.3408,4429.4,4429.0,0.863]
[1755325977620,0.3408,4429.1,4429.0,0.863]
[1755325977815,1.18709899,4429.1,4429.0,1.0293]
[1755325978018,1.18709899,4429.1,4429.0,1.2054]
[1755325978627,0.69839899,4429.1,4429.0,1.2054]
[1755325979219,0.92599899,4429.1,4429.0,1.2054]
[1755325979421,1.18709899,4429.1,4429.0,1.4601]
[1755325979926,0.69839899,4429.1,4429.0,0.589]
[1755325980127,1.18709899,4429.1,4429.0,1.4601]
[1755325980927,0.92599899,4429.1,4429.0,1.4601]
[1755325981128,0.69839899,4429.1,4429.0,1.4601]
[1755325981920,0.92599899,4429.1,4429.0,1.4601]
[1755325982115,0.69839899,4429.1,4429.0,1.0846]
[1755325982320,0.69839899,4429.1,4429.0,1.4601]
[1755325982321,1.18709899,4429.1,4429.0,1.4601]
[1755325983329,0.92599899,4429.1,4429.0,1.4601]
[1755325983527,1.18709899,4429.1,4429.0,1.4601]
[1755325983721,1.19576719,4429.1,4429.0,1.4601]
[1755325984921,0.70706719,4429.1,4429.0,1.4601]
[1755325985321,1.19576719,4429.1,4429.0,1.4601]
[1755325986429,1.19576719,4429.1,4428.7,0.7422]
[1755325986632,0.8295,4428.8,4428.7,0.2466]
[1755325986819,1.19576719,4428.8,4428.7,0.2466]
[1755325987429,1.19576719,4428.8,4428.7,0.4875]
[1755325987821,1.19576719,4428.8,4428.7,0.7422]
[1755325988221,4.40356719,4428.8,4428.7,0.7422]
[1755325988923,0.2276,4428.7,4427.9,4.0789]
[1755325989126,4.0373,4428.1,4428.0,1.4601]
[1755325989325,0.93254392,4428.1,4428.0,1.4601]
[1755325989525,0.52974392,4428.1,4428.0,1.4601]
[1755325991233,0.30241083,4428.1,4428.0,1.4601]
[1755325991533,0.30241083,4428.1,4428.0,2.91072381]
[1755325991725,0.47761083,4428.1,4428.0,1.4601]
[1755325991926,0.96631083,4428.1,4428.0,22.0591]
[1755325992322,0.30241083,4428.1,4428.0,22.0591]
[1755325992521,0.13681083,4428.1,4428.0,22.0591]
[1755325993434,0.30241083,4428.1,4428.0,22.0591]
[1755325994231,0.13681083,4428.1,4428.0,22.0591]
[1755325994431,3.4354,4428.6,4428.0,21.188]
[1755325994631,1.19300156,4428.5,4428.4,2.53522381]
[1755325994832,0.3408,4428.2,4428.1,1.1177]
[1755325995034,1.19302205,4428.2,4428.1,1.1177]
[1755325995534,0.96607154,4428.2,4428.1,1.4601]
[1755325995830,0.96607154,4428.2,4427.8,32.497]
[1755325996027,0.8295,4428.2,4428.1,2.91072381]
[1755325996228,0.96605904,4428.2,4428.1,2.49372381]
[1755325996428,0.96605904,4428.2,4428.1,2.91072381]
[1755325996921,0.13655904,4428.2,4428.1,2.91072381]
[1755325997130,3.2078,4428.6,4428.5,0.589]
[1755325997333,4.13963545,4428.6,4428.5,2.91072381]
[1755325997532,4.40073545,4428.6,4428.5,2.91072381]
[1755325997935,4.40073545,4428.6,4428.5,1.4601]
[1755325998137,0.3408,4428.4,4428.3,23.50972381]
[1755325998334,0.13654601,4428.4,4428.3,23.50972381]
[1755325998535,0.13654601,4428.5,4428.3,23.50972381]
[1755325998736,0.13654601,4428.4,4428.3,23.50972381]
[1755325998934,0.333,4428.4,4428.3,22.04862381]
[1755325999139,0.95224601,4428.4,4428.3,22.64222381]
[1755325999437,0.46954601,4428.4,4428.3,22.087]
[1755325999630,0.30784601,4428.4,4428.3,22.087]
[1755325999830,0.13654601,4428.4,4428.3,22.087]
[1755326000031,0.13654601,4428.4,4428.3,21.1916]
[1755326000333,0.13654601,4428.5,4428.3,21.1916]
[1755326000839,0.13654601,4428.5,4428.4,1.489]
[1755326002537,0.13654601,4428.7,4428.4,1.489]
[1755326002735,0.36352015,4428.6,4428.4,1.489]
[1755326002938,0.30784601,4428.5,4428.4,0.5936]
[1755326003536,0.30784601,4428.5,4428.4,1.489]
[1755326005335,0.53489931,4428.5,4428.4,1.489]
[1755326006744,0.53605891,4428.5,4428.4,1.489]
[1755326007937,0.36475891,4428.5,4428.4,1.489]
[1755326008141,3.2078,4429.8,4429.0,0.1763]
[1755326008342,3.5408,4429.8,4429.7,1.489]
[1755326008641,3.9057303,4429.8,4429.7,22.084]
[1755326008834,4.1334303,4429.8,4429.7,22.084]
[1755326010140,4.3884303,4429.8,4429.7,22.084]
[1755326011040,5.83905411,4429.8,4429.1,0.8954]
[1755326011249,0.8157,4429.3,4429.2,22.083]
[1755326011544,0.95328846,4429.3,4429.2,1.489]
[1755326011745,0.69828846,4429.3,4429.2,22.082]
[1755326012142,0.13758846,4429.3,4429.2,23.53262381]
[1755326012550,3.7685,4429.8,4429.7,0.5936]
[1755326012848,5.82539357,4429.8,4429.7,21.1846]
[1755326013145,5.82539357,4429.8,4429.7,1.489]
[1755326013443,5.82543482,4429.8,4429.7,22.08]
[1755326014147,5.82543482,4429.8,4429.7,21.1846]
[1755326014948,0.1713,4429.2,4428.6,0.3891]
[1755326015249,0.8283,4428.1,4428.0,3.8014]
[1755326015444,0.8283,4428.1,4428.0,24.3914]
[1755326015949,0.255,4428.1,4428.0,24.3914]
[1755326017251,0.255,4428.1,4428.0,22.072]
[1755326017747,0.4263,4428.1,4428.0,23.52262381]
[1755326017941,0.8283,4428.1,4428.0,23.52262381]
[1755326018250,0.8283,4428.1,4428.0,2.93262381]
[1755326018447,0.8283,4428.1,4428.0,23.52162381]
[1755326021347,0.588,4428.1,4428.0,1.2356]
[1755326021548,0.8298,4428.1,4428.0,20.589]
[1755326021852,1.2014,4428.1,4428.0,21.8246]
[1755326022054,1.4564,4428.1,4428.0,21.8246]
[1755326022255,1.4564,4428.1,4428.0,1.2356]
[1755326022447,1.4564,4428.1,4428.0,21.8236]
[1755326022753,1.4564,4428.1,4428.0,22.07]
[1755326022954,1.0848,4428.1,4428.0,22.07]
[1755326026757,1.4564,4428.1,4428.0,22.07]
[1755326029457,1.4564,4428.1,4428.0,21.8236]
[1755326029661,1.59425742,4428.1,4428.0,1.2356]
[1755326029861,1.4564,4428.1,4428.0,21.8226]
[1755326030060,1.4564,4428.1,4428.0,1.2356]
[1755326030260,1.4564,4428.1,4428.0,21.8216]
[1755326030560,1.4564,4428.1,4428.0,22.0624]
[1755326032959,3.2078,4428.7,4428.0,21.8216]
[1755326033262,0.36011234,4428.6,4428.5,1.45062381]
[1755326033462,0.36011234,4428.6,4428.5,22.80972381]
[1755326033760,1.82901234,4428.6,4428.5,23.22882381]
[1755326034256,0.36011234,4428.6,4428.5,23.46962381]
[1755326034456,0.13273594,4428.6,4428.5,23.46962381]
[1755326035059,0.38403594,4428.6,4428.5,23.46962381]
[1755326035253,0.2513,4428.6,4428.5,23.46962381]
[1755326035459,0.8329,4428.6,4428.5,23.46762381]
[1755326035766,1.4689,4428.6,4428.5,23.46762381]
[1755326036963,1.4689,4428.6,4428.5,2.88362381]
[1755326037156,1.4689,4428.6,4428.5,23.46662381]
[1755326037564,1.0978,4428.6,4428.5,23.46662381]
[1755326037768,0.2513,4428.6,4428.5,23.46662381]
[1755326038266,0.2513,4428.6,4428.5,2.88362381]
[1755326038455,0.2513,4428.6,4428.5,23.46662381]
[1755326039657,0.4164,4428.6,4428.5,23.22482381]
[1755326040259,0.4164,4428.6,4428.5,23.46562381]
[1755326040856,3.2078,4428.7,4428.5,23.46562381]
[1755326041063,3.2078,4428.7,4428.6,1.433]
[1755326041257,0.3355,4428.8,4428.7,1.1922]
[1755326041458,1.4689,4428.8,4428.7,1.1922]
[1755326041862,1.4689,4428.8,4428.7,1.433]
[1755326043666,1.0978,4428.8,4428.7,1.433]
[1755326044170,0.1651,4429.0,4428.9,1.0716]
[1755326044371,0.8329,4429.0,4428.9,23.46362381]
[1755326044574,1.4689,4429.0,4428.9,23.46362381]
[1755326045168,1.4689,4429.0,4428.9,23.22282381]
[1755326045869,1.4689,4429.0,4428.9,23.46362381]
[1755326046270,1.4689,4429.0,4428.9,23.22182381]
[1755326047173,1.4689,4429.0,4428.9,2.64282381]
[1755326047374,1.4689,4429.0,4428.9,23.22082381]
[1755326047676,1.4689,4429.0,4428.9,2.64282381]
[1755326047874,1.4689,4429.0,4428.9,23.22082381]
[1755326049075,1.4689,4429.0,4428.9,23.21982381]
[1755326049265,1.4689,4429.0,4428.9,2.64282381]
[1755326049469,1.4689,4429.0,4428.9,23.21882381]
[1755326050075,1.4689,4429.0,4428.9,2.64282381]
[1755326050275,1.4689,4429.0,4428.9,23.21882381]
[1755326050672,1.4689,4429.0,4428.9,2.64282381]
[1755326051072,1.4689,4429.0,4428.9,23.21782381]
[1755326051772,1.4689,4429.0,4428.9,2.64282381]
[1755326051979,1.4689,4429.0,4428.9,23.21782381]
[1755326053881,1.4689,4429.0,4428.9,2.64282381]
[1755326054076,1.4689,4429.0,4428.9,23.21682381]
[1755326054374,1.4689,4429.0,4428.9,22.27052381]
[1755326054577,1.4689,4428.2,4427.8,2.28236847]
[1755326054885,1.4689,4428.0,4427.9,20.574]
[1755326055272,1.4689,4428.0,4427.9,21.1813]
[1755326055572,1.4689,4428.0,4427.9,21.4409]
[1755326056479,1.4689,4428.0,4427.9,21.6067]
[1755326057472,1.4689,4428.0,4427.9,21.7662]
[1755326059578,1.4689,4428.0,4427.9,22.0118]
[1755326059776,0.3776,4428.8,4428.0,0.88]
[1755326059973,1.81681722,4428.7,4428.6,1.70992381]
[1755326060279,1.81681722,4428.7,4428.6,22.66612381]
[1755326060478,1.8169084,4428.7,4428.6,22.66612381]
[1755326060681,1.8169084,4428.7,4428.6,22.28292381]
[1755326063879,1.4393084,4428.7,4428.6,23.00992381]
[1755326064079,0.13285915,4428.7,4428.6,23.50672381]
[1755326064981,0.38405915,4428.7,4428.6,23.50672381]
[1755326065879,1.60154308,4428.7,4428.6,22.45162381]
[1755326066070,1.60154308,4428.7,4428.6,23.26012381]
[1755326066274,0.38404308,4428.7,4428.6,23.50572381]
[1755326066580,0.2512,4428.7,4428.6,23.50572381]
[1755326067379,0.6713,4428.7,4428.6,23.50572381]
[1755326072177,1.0911,4429.3,4429.2,0.6031]
[1755326072373,0.34818666,4429.3,4429.2,23.25612381]
[1755326072571,0.2512,4429.6,4429.2,23.50172381]
[1755326072770,0.2512,4429.4,4429.3,1.3134]
[1755326072981,0.2512,4429.4,4429.3,22.0511]
[1755326073284,0.8351,4429.4,4429.3,22.0511]
[1755326073477,1.2127,4429.4,4429.3,22.0511]
[1755326073676,1.4687,4429.4,4429.3,22.0511]
[1755326073877,1.4687,4429.4,4429.3,23.50172381]
[1755326074584,1.4687,4429.4,4429.3,23.25612381]
[1755326076178,1.4687,4429.4,4429.3,23.50172381]
[1755326076578,1.0911,4429.4,4429.3,23.50172381]
[1755326076783,1.4687,4429.4,4429.3,23.25612381]
[1755326078383,1.0911,4429.4,4429.3,23.25612381]
[1755326078886,1.4687,4429.4,4429.3,23.25612381]
[1755326079788,1.4687,4429.4,4429.3,23.25212381]
[1755326080384,1.4687,4429.4,4429.3,2.68812381]
[1755326080684,1.4687,4429.4,4429.3,23.25112381]
[1755326081280,1.4687,4429.4,4429.3,1.70992381]
[1755326081485,1.4687,4428.8,4428.7,0.2593]
[1755326081685,1.4687,4428.8,4428.7,20.8223]
[1755326081881,0.8421,4429.3,4429.2,1.2375]
[1755326082085,0.8421,4429.3,4429.2,26.70352381]
[1755326082086,0.5861,4429.3,4429.2,26.70352381]
[1755326082787,1.2127,4429.3,4429.2,26.70352381]
[1755326082987,1.4687,4429.3,4429.2,26.45792381]
[1755326083189,1.4687,4429.3,4429.2,3.2078]
[1755326083388,1.60136573,4429.3,4429.2,23.7698]
[1755326083584,1.60136573,4429.3,4429.2,3.2078]
[1755326083782,6.25978954,4429.3,4429.2,19.9057]
[1755326084086,0.6288,4429.0,4428.6,0.2512]
[1755326084385,3.55498314,4429.3,4428.6,0.4209]
[1755326084386,1.0559,4428.7,4428.6,0.4209]
[1755326084588,1.0559,4428.7,4428.6,20.9819]
[1755326085088,1.0559,4428.7,4428.6,22.062]
[1755326085288,1.0559,4428.7,4428.6,1.501]
[1755326085484,1.0559,4428.7,4428.6,22.062]
[1755326086087,1.0559,4428.7,4428.6,21.4153]
[1755326086283,1.0559,4428.7,4428.5,1.45062381]
[1755326086584,1.0559,4428.6,4428.5,0.2512]
[1755326086786,1.0559,4428.6,4428.5,20.9819]
[1755326087384,1.0559,4428.6,4428.5,21.5392]
[1755326087593,1.0559,4428.6,4428.5,0.9782]
[1755326087888,1.0559,4428.6,4428.5,23.51262381]
[1755326091588,1.0559,4428.6,4428.5,2.95162381]
[1755326091783,1.0559,4428.6,4428.5,20.8212]
[1755326091986,1.18869253,4428.6,4428.5,20.8212]
[1755326093291,1.18869253,4428.6,4428.5,21.7762]
[1755326093693,1.18869253,4428.6,4428.5,22.0175]
[1755326097500,1.18869253,4428.6,4428.5,21.7762]
[1755326098101,1.18869253,4428.6,4428.5,0.8313]
[1755326098311,1.18869253,4428.6,4428.5,20.9887]
[1755326099115,0.4126,4428.4,4428.3,0.4287]
[1755326099413,1.0131,4428.4,4428.3,21.7553]
[1755326099811,1.0131,4428.4,4428.3,22.0165]
[1755326101809,1.0131,4428.4,4428.3,1.4575]
[1755326102008,1.0131,4428.4,4428.3,22.0155]
[1755326102510,1.0131,4428.4,4428.0,0.2612]
[1755326102709,0.4126,4428.2,4428.1,21.7543]
[1755326103013,1.14588774,4428.2,4428.1,21.7543]
[1755326103212,1.14588775,4428.2,4428.1,21.7543]
[1755326103515,1.14588775,4428.2,4428.1,22.0155]
[1755326104502,0.54538775,4428.2,4427.7,0.2612]
[1755326104710,1.0131,4427.4,4427.3,0.5701]
[1755326104903,1.0131,4428.1,4428.0,0.5701]
[1755326105110,1.1458548,4428.1,4428.0,21.1281]
[1755326105309,1.1458548,4428.1,4428.0,22.0155]
[1755326107406,1.1458548,4428.1,4428.0,1.4575]
[1755326107611,1.1458548,4428.1,4428.0,22.0155]
[1755326108510,0.4126,4427.8,4427.7,0.955]
[1755326108715,1.1458548,4427.8,4427.7,21.513]
[1755326108913,1.1458548,4427.8,4427.7,0.955]
[1755326109108,1.1458548,4427.8,4427.7,21.3893]
[1755326109313,1.36215631,4427.8,4427.7,21.3893]
[1755326109514,1.1458548,4427.8,4427.7,21.3893]
[1755326109713,1.1458548,4427.8,4427.7,1.2162]
[1755326109918,1.1458548,4427.8,4427.7,21.3893]
[1755326110116,1.1458548,4427.8,4427.7,22.0155]
[1755326110518,1.1458548,4427.8,4427.7,23.46612381]
[1755326110721,0.1327548,4427.8,4427.7,23.46612381]
[1755326111515,0.2981548,4427.8,4427.7,23.46612381]
[1755326112414,0.5396548,4427.8,4427.7,23.46612381]
[1755326112614,0.2981548,4427.8,4427.7,23.46612381]
[1755326113522,0.1327548,4427.8,4427.7,23.46612381]
[1755326114215,0.5396548,4427.8,4427.7,23.46612381]
[1755326114420,0.8986548,4427.8,4427.7,23.46612381]
[1755326114617,0.6005,4427.7,4426.4,2.02276847]
[1755326114821,0.4126,4426.4,4426.3,1.4575]
[1755326115121,0.1654,4426.4,4426.3,23.46612381]
[1755326115321,1.0131,4427.1,4427.0,0.955]
[1755326115517,1.3618098,4427.1,4427.0,22.0155]
[1755326116321,1.14572574,4427.1,4427.0,21.7742]
[1755326116516,1.14572574,4427.1,4427.0,1.4575]
[1755326116819,1.36172599,4427.1,4427.0,20.8192]
[1755326117218,1.36172599,4427.1,4427.0,0.2612]
[1755326117420,1.36163567,4427.1,4427.0,20.8212]
[1755326118015,1.36163567,4427.1,4427.0,21.7762]
[1755326118317,1.14572574,4427.1,4427.0,22.0175]
[1755326118522,0.54522574,4427.1,4426.6,0.4093]
[1755326118718,0.13262574,4427.0,4426.7,20.8928]
[1755326118923,0.54912574,4426.9,4426.8,20.799]
[1755326119123,1.17392574,4426.9,4426.8,0.239]
[1755326119323,1.17392574,4426.9,4426.8,21.762]
[1755326119525,1.17392574,4426.9,4426.8,22.0081]
[1755326120625,1.17392574,4426.9,4426.8,1.203]
[1755326120821,0.3608,4426.8,4426.3,0.2461]
[1755326121022,1.0413,4426.4,4426.3,1.4491]
[1755326121326,1.0413,4426.4,4426.3,22.0091]
[1755326122522,3.2078,4427.2,4426.3,1.4491]
[1755326122731,0.13192477,4427.1,4427.0,1.4491]
[1755326123022,0.1639,4427.7,4427.6,1.4491]
[1755326123229,1.0413,4427.7,4427.6,22.0091]
[1755326123427,1.0413,4427.7,4427.6,1.4491]
[1755326123627,1.0413,4427.7,4427.6,1.203]
[1755326123827,1.0413,4427.7,4427.6,1.4491]
[1755326124126,1.0413,4427.1,4427.0,1.4491]
[1755326124727,1.0413,4427.1,4427.0,22.0101]
[1755326125330,1.0413,4427.1,4427.0,1.4491]
[1755326125630,1.0425,4427.1,4427.0,0.8155]
[1755326125825,0.81368285,4427.1,4426.7,0.3875]
[1755326126029,0.4177,4426.9,4426.8,20.799]
[1755326126231,1.0425,4426.9,4426.8,0.8155]
[1755326126428,1.0425,4426.9,4426.8,22.0091]
[1755326127126,1.0425,4426.9,4426.8,0.4093]
[1755326127432,0.7887,4426.9,4426.8,22.0091]
[1755326127631,1.0413,4426.9,4426.8,1.4491]
[1755326128727,3.2078,4427.2,4427.1,0.3328]
[1755326129031,3.33985157,4427.2,4427.1,1.4491]
[1755326129432,3.33985157,4427.2,4427.1,2.89972381]
[1755326130728,4.2503,4428.2,4428.1,0.5765]
[1755326130928,4.59836679,4428.2,4428.1,1.4491]
[1755326135537,4.59716679,4428.2,4428.1,1.4491]
[1755326137134,4.23636679,4428.2,4428.1,1.4491]
[1755326137542,4.38118635,4428.2,4428.1,1.4491]
[1755326137834,3.33988635,4428.2,4428.1,1.4491]
[1755326138032,3.2078,4428.9,4428.2,0.2461]
[1755326138243,3.2078,4428.9,4428.8,2.89972381]
[1755326138430,3.76795431,4428.9,4428.8,1.4491]
[1755326138634,0.6248,4427.5,4426.9,0.2461]
[1755326138936,4.6487,4427.1,4427.0,0.5789]
[1755326139137,4.79799277,4427.1,4427.0,0.8226]
[1755326139339,5.03779277,4427.1,4427.0,0.1703]
[1755326139634,0.5763,4426.8,4426.7,0.3328]
[1755326139840,1.69773846,4426.8,4426.7,0.3328]
[1755326140240,1.69773846,4426.8,4426.7,0.5789]
[1755326140743,1.69773846,4426.8,4426.7,0.8179]
[1755326140940,1.69773846,4426.8,4425.8,4.65842381]
[1755326140941,0.6248,4426.6,4425.8,0.6265]
[1755326141236,0.3890092,4426.5,4426.0,0.5765]
[1755326141440,0.42071734,4426.4,4426.3,0.5765]
[1755326141639,0.42071734,4426.4,4426.3,1.4491]
[1755326141640,0.67331734,4426.4,4426.3,1.4491]
[1755326141844,1.59010571,4426.4,4426.3,1.4491]
[1755326142145,1.69771734,4426.4,4426.3,1.4491]
[1755326142544,1.82989713,4426.4,4426.3,1.4491]
[1755326143045,1.82989713,4426.4,4426.0,0.239]
[1755326143241,4.2491,4426.1,4426.0,0.5718]
[1755326143447,4.2491,4426.1,4425.3,3.2078]
[1755326143448,0.6248,4426.0,4425.4,0.4851]